bitfinex/quotes_BTCUSD_20250114
["timestamp","ask_amount","ask_price","bid_price","bid_amount"]
[1736824337701,0.09051705,95068.0,95067.0,0.0232963]
[1736824337902,0.09051705,95068.0,95067.0,0.0262963]
[1736824338155,0.09051705,95073.0,95068.0,0.210375]
[1736824338291,0.09051705,95073.0,95069.0,0.0824]
[1736824338511,0.09051705,95085.0,95070.0,0.0503518]
[1736824338719,0.09051705,95091.0,95087.0,0.210333]
[1736824338931,0.09051705,95089.0,95088.0,0.0824]
[1736824339170,0.09051705,95089.0,95088.0,0.14682936]
[1736824339326,0.09051705,95094.0,95089.0,0.210329]
[1736824339725,0.09051705,95097.0,95088.0,0.1317]
[1736824339962,25.00178858,95098.0,95094.0,0.210316]
[1736824340129,25.00178858,95098.0,95096.0,0.210313]
[1736824340505,25.00178858,95098.0,95095.0,0.0824]
[1736824341849,25.00178858,95098.0,95095.0,0.0844]
[1736824343300,25.00178858,95098.0,95095.0,0.0894]
[1736824344663,25.00178858,95098.0,95096.0,0.210313]
[1736824344865,25.00178858,95098.0,95097.0,0.98147048]
[1736824345496,25.00178858,95098.0,95097.0,2.48147048]
[1736824346645,25.00178858,95098.0,95097.0,2.49047048]
[1736824348320,25.00178858,95098.0,95097.0,0.99547048]
[1736824348656,25.00178858,95098.0,95097.0,1.10527432]
[1736824348848,25.00178858,95098.0,95097.0,2.60527432]
[1736824351741,25.00178858,95098.0,95097.0,2.84106117]
[1736824352537,25.00178858,95098.0,95097.0,2.60527432]
[1736824353082,25.00178858,95098.0,95097.0,2.79383999]
[1736824353526,25.00178858,95098.0,95097.0,2.60527432]
[1736824354106,25.00178858,95098.0,95097.0,2.79383999]
[1736824355226,25.00178858,95098.0,95097.0,2.60527432]
[1736824356573,25.00178858,95098.0,95097.0,2.79373286]
[1736824357236,25.00178858,95098.0,95097.0,2.60527432]
[1736824361119,25.00178858,95098.0,95097.0,2.75527432]
[1736824361316,25.00178858,95098.0,95097.0,2.86475727]
[1736824362601,25.00178858,95098.0,95097.0,3.10054412]
[1736824362966,25.00178858,95098.0,95097.0,2.86475727]
[1736824364211,25.00178858,95098.0,95097.0,2.88775727]
[1736824364415,25.00178858,95098.0,95097.0,3.97371927]
[1736824364589,25.00178858,95098.0,95097.0,3.01173227]
[1736824364911,25.00178858,95098.0,95097.0,3.24751912]
[1736824365908,25.00178858,95098.0,95097.0,2.88775727]
[1736824366501,25.00178858,95098.0,95097.0,3.00705327]
[1736824366743,25.00178858,95098.0,95097.0,2.88775727]
[1736824367040,24.96705503,95098.0,95097.0,3.00205327]
[1736824367247,24.96705503,95098.0,95097.0,2.88775727]
[1736824369853,24.96705503,95098.0,95097.0,3.00152427]
[1736824370369,24.96705503,95098.0,95097.0,2.88775727]
[1736824370532,24.96705503,95098.0,95097.0,3.00152427]
[1736824371139,24.96705503,95098.0,95097.0,2.88775727]
[1736824372221,24.96705503,95098.0,95097.0,3.43753327]
[1736824372353,24.96705503,95098.0,95097.0,3.47029109]
[1736824374776,24.96705503,95098.0,95097.0,3.46529109]
[1736824374976,24.96705503,95098.0,95097.0,3.46129109]
[1736824375110,24.96705503,95098.0,95097.0,3.47029109]
[1736824375553,24.96705503,95098.0,95097.0,3.46529109]
[1736824375856,24.96705503,95098.0,95097.0,3.74682479]
[1736824376398,24.96805503,95098.0,95097.0,3.75482479]
[1736824377236,24.96805503,95098.0,95097.0,3.47329109]
[1736824377465,24.92649803,95098.0,95097.0,3.47329109]
[1736824377675,24.92649803,95098.0,95097.0,3.51540709]
[1736824377830,24.60360774,95098.0,95097.0,3.51540709]
[1736824378686,24.60360774,95098.0,95097.0,3.51625959]
[1736824381520,24.60360774,95098.0,95097.0,3.62705959]
[1736824381826,24.54051474,95098.0,95097.0,3.62705959]
[1736824382227,23.15105974,95098.0,95097.0,4.48435959]
[1736824382647,23.12705174,95098.0,95097.0,4.49504484]
[1736824383068,23.08232917,95098.0,95097.0,4.49504484]
[1736824383275,22.99820517,95098.0,95097.0,4.77778189]
[1736824383661,22.97204517,95098.0,95097.0,4.77778189]
[1736824383814,22.89695245,95098.0,95097.0,4.49504484]
[1736824384034,22.75986945,95098.0,95097.0,4.49504484]
[1736824384243,22.75991817,95098.0,95097.0,4.49504484]
[1736824385102,22.71785617,95098.0,95097.0,4.49504484]
[1736824385829,22.5260538,95098.0,95097.0,4.49504484]
[1736824386248,22.4839918,95098.0,95097.0,4.49504484]
[1736824386453,22.4629608,95098.0,95097.0,4.49504484]
[1736824386772,22.4208988,95098.0,95097.0,4.49504484]
[1736824386911,22.3998678,95098.0,95097.0,4.49504484]
[1736824387113,22.3127438,95098.0,95097.0,4.49504484]
[1736824387356,21.0927438,95098.0,95097.0,4.49504484]
[1736824387836,21.0717128,95098.0,95097.0,4.49504484]
[1736824388045,21.0296508,95098.0,95097.0,4.49504484]
[1736824388676,21.0296508,95098.0,95097.0,4.23596184]
[1736824388795,21.0296508,95098.0,95097.0,4.20320402]
[1736824392238,20.9665578,95098.0,95097.0,4.20320402]
[1736824392448,20.8738758,95098.0,95097.0,4.20320402]
[1736824392850,20.8528448,95098.0,95097.0,4.20320402]
[1736824393044,19.5487208,95098.0,95097.0,4.23601724]
[1736824393351,19.5487208,95098.0,95097.0,4.20320402]
[1736824393918,19.5066588,95098.0,95097.0,4.48655705]
[1736824394102,19.4645968,95098.0,95097.0,4.20190405]
[1736824394271,19.4435658,95098.0,95097.0,5.07915305]
[1736824394481,19.4435658,95098.0,95097.0,5.06130105]
[1736824394929,19.4435658,95098.0,95097.0,4.77794802]
[1736824395095,19.4435658,95098.0,95097.0,4.71612802]
[1736824395270,19.4435658,95098.0,95097.0,4.63131302]
[1736824395642,19.4435658,95098.0,95097.0,4.53915302]
[1736824396336,19.4435658,95098.0,95097.0,4.42835302]
[1736824396885,19.4435658,95098.0,95097.0,4.71173877]
[1736824398925,19.4435658,95098.0,95097.0,4.42835302]
[1736824399553,19.4435658,95098.0,95097.0,4.32835302]
[1736824399763,19.4435658,95098.0,95097.0,4.30246002]
[1736824400088,19.4435658,95098.0,95097.0,4.20246002]
[1736824400417,19.4435658,95098.0,95097.0,4.24448802]
[1736824400571,19.4435658,95098.0,95097.0,4.19738302]
[1736824401194,19.4435658,95098.0,95097.0,4.48086437]
[1736824401767,19.4435658,95098.0,95097.0,4.19738302]
[1736824403200,19.4435658,95098.0,95097.0,4.23022614]
[1736824403804,19.4435658,95098.0,95097.0,4.64830006]
[1736824404021,19.4435658,95098.0,95097.0,4.50544506]
[1736824404323,19.4435658,95098.0,95097.0,4.08737114]
[1736824405243,19.4435658,95098.0,95097.0,4.08133114]
[1736824405571,19.41065921,95098.0,95097.0,3.60889414]
[1736824405887,19.41065921,95098.0,95097.0,3.70889414]
[1736824410094,19.41065921,95098.0,95097.0,2.85159414]
[1736824410431,19.41065921,95098.0,95097.0,3.29352889]
[1736824410789,19.41065921,95098.0,95097.0,3.27640399]
[1736824410975,19.41065921,95098.0,95097.0,3.18567999]
[1736824413690,19.30550421,95098.0,95097.0,3.37947999]
[1736824413889,17.99828595,95098.0,95097.0,3.39403687]
[1736824414111,17.97725495,95098.0,95097.0,3.39403687]
[1736824415218,17.91416195,95098.0,95097.0,3.39403687]
[1736824415767,17.91416195,95098.0,95097.0,3.38455392]
[1736824415973,17.91416195,95098.0,95097.0,3.05994587]
[1736824416148,17.91416195,95098.0,95097.0,4.77100287]
[1736824416300,17.91416195,95098.0,95097.0,4.76032277]
[1736824416486,17.91416195,95098.0,95097.0,4.61519058]
[1736824416686,17.91416195,95098.0,95097.0,3.82557258]
[1736824416899,17.91416195,95098.0,95097.0,3.92557258]
[1736824418364,17.91416195,95098.0,95097.0,4.20937205]
[1736824418743,17.91416195,95098.0,95097.0,3.92557258]
[1736824421209,17.91416195,95098.0,95097.0,3.67604458]
[1736824421428,17.91416195,95098.0,95097.0,4.18528858]
[1736824421978,17.91416195,95098.0,95097.0,4.46908805]
[1736824422162,17.91416195,95098.0,95097.0,3.57782805]
[1736824422582,17.91416195,95098.0,95097.0,3.29402858]
[1736824423388,17.91416195,95098.0,95097.0,3.23340658]
[1736824423562,17.91416195,95098.0,95097.0,3.51720605]
[1736824423961,17.91416195,95098.0,95097.0,3.55006396]
[1736824424377,17.91416195,95098.0,95097.0,3.24082149]
[1736824426377,17.91416195,95098.0,95097.0,2.84556249]
[1736824426579,17.91416195,95098.0,95097.0,2.85160249]
[1736824426979,17.91316195,95098.0,95097.0,2.85160249]
[1736824434410,17.98836195,95098.0,95097.0,2.56307954]
[1736824434610,18.03366195,95098.0,95097.0,2.49414563]
[1736824434993,18.03366195,95098.0,95097.0,2.64414563]
[1736824436307,18.03366195,95098.0,95097.0,2.63810563]
[1736824436561,18.03366195,95098.0,95097.0,2.64414563]
[1736824438278,17.91316195,95098.0,95097.0,2.65362858]
[1736824438488,17.91316195,95098.0,95097.0,2.67662858]
[1736824438735,17.91316195,95098.0,95097.0,2.70948633]
[1736824439371,17.91316195,95098.0,95097.0,2.70000338]
[1736824439571,17.91316195,95098.0,95097.0,3.11922763]
[1736824439773,17.91316195,95098.0,95097.0,2.70000338]
[1736824440566,17.91316195,95098.0,95097.0,2.66714563]
[1736824440722,17.91316195,95098.0,95097.0,2.67700443]
[1736824440926,17.91316195,95098.0,95097.0,2.64414563]
[1736824450386,17.91316195,95098.0,95097.0,2.65362858]
[1736824451341,17.91316195,95098.0,95097.0,2.80344554]
[1736824451546,17.80800695,95098.0,95097.0,4.03840554]
[1736824451749,17.73567328,95098.0,95097.0,4.03840554]
[1736824452065,17.73567328,95098.0,95097.0,3.92760554]
[1736824452268,17.73567328,95098.0,95097.0,3.92156554]
[1736824452492,17.73467328,95098.0,95097.0,3.91960554]
[1736824452700,17.73467328,95098.0,95097.0,3.92056554]
[1736824452917,17.73467328,95098.0,95097.0,3.92660554]
[1736824453291,17.73467328,95098.0,95097.0,3.91156554]
[1736824453494,17.73467328,95098.0,95097.0,3.91760554]
[1736824453690,17.73467328,95098.0,95097.0,3.92660554]
[1736824453895,17.73467328,95098.0,95097.0,3.64978554]
[1736824454435,17.73467328,95098.0,95097.0,4.07781287]
[1736824454668,17.73467328,95098.0,95097.0,4.06881287]
[1736824455075,17.73467328,95098.0,95097.0,3.22051287]
[1736824455303,17.73467328,95098.0,95097.0,3.21851287]
[1736824455658,17.73467328,95098.0,95097.0,3.21151287]
[1736824456066,17.73467328,95098.0,95097.0,3.21751287]
[1736824456524,17.73467328,95098.0,95097.0,3.21151287]
[1736824456754,17.73467328,95098.0,95097.0,3.22651287]
[1736824456959,17.73467328,95098.0,95097.0,3.21751287]
[1736824457297,17.73467328,95098.0,95097.0,3.22651287]
[1736824458049,17.73467328,95098.0,95097.0,2.80748554]
[1736824458456,17.73467328,95098.0,95097.0,2.79680673]
[1736824459611,17.73467328,95098.0,95097.0,2.79076673]
[1736824459818,17.73467328,95098.0,95097.0,2.78732378]
[1736824460174,17.73467328,95098.0,95097.0,2.79680673]
[1736824462578,17.73467328,95098.0,95097.0,2.80763947]
[1736824465630,17.73467328,95098.0,95097.0,2.79815652]
[1736824465789,17.73467328,95098.0,95097.0,2.78463947]
[1736824466396,17.73467328,95098.0,95097.0,2.77515652]
[1736824466594,17.73467328,95098.0,95097.0,2.78463947]
[1736824467000,17.73467328,95098.0,95097.0,2.77515652]
[1736824467424,17.73467328,95098.0,95097.0,2.67515652]
[1736824467700,17.73467328,95098.0,95097.0,2.66615652]
[1736824468334,17.73467328,95098.0,95097.0,2.65532378]
[1736824468538,17.73467328,95098.0,95097.0,2.65880673]
[1736824468695,17.73467328,95098.0,95097.0,2.65632378]
[1736824469246,17.73467328,95098.0,95097.0,2.66716657]
[1736824469453,17.73467328,95098.0,95097.0,2.67616657]
[1736824473027,17.73467328,95098.0,95097.0,2.77616657]
[1736824474220,17.73467328,95098.0,95097.0,2.67616657]
[1736824474435,17.73467328,95098.0,95097.0,2.77616657]
[1736824474968,17.73467328,95098.0,95097.0,2.67616657]
[1736824475177,17.73467328,95098.0,95097.0,2.77616657]
[1736824476541,17.73467328,95098.0,95097.0,2.67616657]
[1736824477108,17.73467328,95098.0,95097.0,2.66532378]
[1736824482614,17.73467328,95098.0,95097.0,2.74732378]
[1736824484141,17.73467328,95098.0,95097.0,3.24220219]
[1736824484397,17.73467328,95098.0,95097.0,3.22620219]
[1736824484625,17.73467328,95098.0,95097.0,3.24220219]
[1736824484851,17.73467328,95098.0,95097.0,3.23320219]
[1736824485084,17.73467328,95098.0,95097.0,3.24309428]
[1736824485284,17.73467328,95098.0,95097.0,2.93734928]
[1736824485499,17.73467328,95098.0,95097.0,4.17214728]
[1736824486364,17.73467328,95098.0,95097.0,2.87554928]
[1736824487161,17.73467328,95098.0,95097.0,2.86606633]
[1736824487561,17.73467328,95098.0,95097.0,2.78406633]
[1736824489287,17.73467328,95098.0,95097.0,2.67802633]
[1736824489572,17.73467328,95098.0,95097.0,2.68406633]
[1736824490567,17.73467328,95098.0,95097.0,2.67321587]
[1736824492656,17.73467328,95098.0,95097.0,2.75521587]
[1736824493261,17.73467328,95098.0,95097.0,2.76605881]
[1736824495996,17.73467328,95098.0,95097.0,2.68405881]
[1736824497342,17.73467328,95098.0,95097.0,2.67321587]
[1736824497793,17.73467328,95098.0,95097.0,2.66621587]
[1736824497971,17.73467328,95098.0,95097.0,2.65721587]
[1736824498197,17.73467328,95098.0,95097.0,2.67121587]
[1736824498553,17.73467328,95098.0,95097.0,2.65721587]
[1736824498775,17.73467328,95098.0,95097.0,2.66621587]
[1736824500078,17.73467328,95098.0,95097.0,2.67121587]
[1736824501169,17.81327328,95098.0,95097.0,2.40537203]
[1736824501371,17.95059033,95098.0,95097.0,0.87251507]
[1736824501786,17.94929678,95098.0,95097.0,0.87251507]
[1736824502178,17.94929678,95098.0,95097.0,0.86351507]
[1736824502614,17.94929678,95098.0,95097.0,0.86462298]
[1736824503302,17.94929678,95098.0,95097.0,1.04894519]
[1736824503682,17.94929678,95098.0,95097.0,1.05094519]
[1736824503890,17.94929678,95098.0,95097.0,1.04194519]
[1736824504073,17.94929678,95098.0,95097.0,1.04894519]
[1736824504548,17.94929678,95098.0,95097.0,0.85062298]
[1736824505444,17.94929678,95098.0,95097.0,0.85562298]
[1736824505650,17.94929678,95098.0,95097.0,0.85062298]
[1736824506055,17.94929678,95098.0,95097.0,0.3210525]
[1736824507159,17.94929678,95098.0,95097.0,0.3260525]
[1736824507488,17.94929678,95098.0,95097.0,0.3210525]
[1736824507619,17.94929678,95098.0,95097.0,1.8210525]
[1736824507821,17.94929678,95098.0,95097.0,1.8270525]
[1736824508029,17.94929678,95098.0,95097.0,0.0068525]
[1736824510090,17.94929678,95098.0,95097.0,0.0008525]
[1736824510498,18.31954674,95098.0,95097.0,0.0008525]
[1736824510786,0.42665705,95084.0,95083.0,0.3202]
[1736824511157,0.42665705,95084.0,95083.0,0.33108787]
[1736824511951,0.42665705,95084.0,95083.0,0.01688787]
[1736824513884,0.42665705,95084.0,95083.0,0.01088787]
[1736824514098,0.42665705,95084.0,95083.0,0.01588787]
[1736824514303,0.42665705,95084.0,95083.0,0.005]
[1736824514622,0.42665705,95084.0,95077.0,0.52957048]
[1736824514967,0.42665705,95084.0,95083.0,0.01293188]
[1736824515167,0.42665705,95084.0,95083.0,0.002]
[1736824515303,0.42665705,95084.0,95083.0,0.01293188]
[1736824515519,0.42665705,95084.0,95083.0,0.002]
[1736824515732,0.42665705,95084.0,95083.0,0.01293188]
[1736824515907,0.42665705,95084.0,95083.0,0.002]
[1736824516510,0.09051705,95068.0,95067.0,1.5008528]
[1736824516918,0.09051705,95068.0,95067.0,1.51180018]
[1736824517820,0.09056575,95068.0,95067.0,0.01380018]
[1736824518018,0.21726575,95068.0,95067.0,0.01380018]
[1736824518156,0.21726575,95068.0,95067.0,0.02280018]
[1736824518951,0.21726575,95068.0,95067.0,0.02080018]
[1736824519712,0.21726575,95068.0,95067.0,0.01180018]
[1736824520257,0.21726575,95068.0,95067.0,0.01380018]
[1736824520670,0.21726575,95068.0,95067.0,0.01180018]
[1736824521087,0.42706959,95068.0,95067.0,0.01180018]
[1736824521420,0.42706959,95068.0,95067.0,0.0008528]
[1736824521624,0.43778225,95068.0,95067.0,0.0008528]
[1736824523373,0.58778225,95068.0,95067.0,0.0008528]
[1736824524491,0.61078225,95068.0,95067.0,0.0008528]
[1736824524669,0.56721705,95062.0,95061.0,0.000852]
[1736824524850,0.56721705,95062.0,95047.0,0.0008522]
[1736824524851,0.34051705,95048.0,95047.0,0.0008522]
[1736824525052,0.46272089,95048.0,95047.0,0.0008522]
[1736824525644,0.67313989,95048.0,95047.0,0.0008522]
[1736824527077,0.52513989,95048.0,95047.0,0.0008522]
[1736824528240,0.54637415,95048.0,95047.0,0.0008522]
[1736824529070,0.5571133,95048.0,95047.0,0.0008522]
[1736824535889,0.7071133,95048.0,95047.0,0.0008522]
[1736824536102,0.8071133,95048.0,95047.0,0.0008522]
[1736824536695,0.8051133,95048.0,95047.0,0.0008522]
[1736824537139,0.8071133,95048.0,95047.0,0.0018522]
[1736824537343,0.8051133,95048.0,95047.0,0.0008522]
[1736824537746,0.8071133,95048.0,95047.0,0.0008522]
[1736824539585,0.8301133,95048.0,95047.0,0.0008522]
[1736824539790,0.8281133,95048.0,95047.0,0.0008522]
[1736824539998,0.8301133,95048.0,95047.0,0.0008522]
[1736824540180,0.8331133,95048.0,95047.0,0.0008522]
[1736824540346,0.8311133,95048.0,95047.0,0.0008522]
[1736824540550,0.8301133,95048.0,95047.0,0.0008522]
[1736824540864,0.8311133,95048.0,95047.0,0.0008522]
[1736824541276,0.8301133,95048.0,95047.0,0.0008522]
[1736824541472,0.8281133,95048.0,95047.0,0.0008522]
[1736824541696,0.8321133,95048.0,95047.0,0.0008522]
[1736824542792,0.8341133,95048.0,95047.0,0.0008522]
[1736824543003,0.8301133,95048.0,95047.0,0.0008522]
[1736824543211,0.8281133,95048.0,95047.0,0.0008522]
[1736824543438,0.8321133,95048.0,95047.0,0.0008522]
[1736824544372,0.8301133,95048.0,95047.0,0.0008522]
[1736824544830,0.8321133,95048.0,95047.0,0.0008522]
[1736824545047,0.8091133,95048.0,95047.0,0.0008522]
[1736824545648,0.8321133,95048.0,95047.0,0.0008522]
[1736824545987,0.8281133,95048.0,95047.0,0.0008522]
[1736824546186,0.8301133,95048.0,95047.0,0.0008522]
[1736824546848,0.8281133,95048.0,95047.0,0.0008522]
[1736824547046,0.8301133,95048.0,95047.0,0.0008522]
[1736824547958,0.8321133,95048.0,95047.0,0.0008522]
[1736824548975,0.8301133,95048.0,95047.0,0.0008522]
[1736824549409,0.5967133,95048.0,95047.0,0.0008522]
[1736824549687,0.42347904,95048.0,95047.0,0.0008522]
[1736824549906,0.57547904,95048.0,95047.0,0.0008522]
[1736824550110,0.57347904,95048.0,95047.0,0.0008522]
[1736824550312,0.57147904,95048.0,95047.0,0.0008522]
[1736824550545,0.42347904,95048.0,95047.0,0.0008522]
[1736824550763,0.57347904,95048.0,95047.0,0.0008522]
[1736824551114,0.75417904,95048.0,95047.0,0.0008522]
[1736824552161,0.77917904,95048.0,95047.0,0.0008522]
[1736824552314,0.77717904,95048.0,95047.0,0.0008522]
[1736824552516,0.77917904,95048.0,95047.0,0.0008522]
[1736824552779,0.78117904,95048.0,95047.0,0.0008522]
[1736824552954,0.77917904,95048.0,95047.0,0.0008522]
[1736824553335,0.78117904,95048.0,95047.0,0.0008522]
[1736824553548,0.77917904,95048.0,95047.0,0.0008522]
[1736824553744,0.57147904,95048.0,95047.0,0.0008522]
[1736824553941,0.57347904,95048.0,95047.0,0.0018522]
[1736824554149,0.57547904,95048.0,95047.0,0.0018522]
[1736824555536,0.67147904,95048.0,95047.0,0.0008522]
[1736824555720,0.67347904,95048.0,95047.0,0.0018522]
[1736824555923,0.67347904,95048.0,95047.0,0.0008522]
[1736824556559,0.67147904,95048.0,95047.0,0.0008522]
[1736824556735,0.67547904,95048.0,95047.0,0.0008522]
[1736824557240,0.67347904,95048.0,95047.0,0.0008522]
[1736824557447,0.67547904,95048.0,95047.0,0.0008522]
[1736824560099,0.57147904,95048.0,95047.0,0.0008522]
[1736824560303,0.67147904,95048.0,95047.0,0.0008522]
[1736824560508,0.67347904,95048.0,95047.0,0.0008522]
[1736824561020,0.57547904,95048.0,95047.0,0.0008522]
[1736824562129,0.57347904,95048.0,95047.0,0.0008522]
[1736824562362,0.57147904,95048.0,95047.0,0.0008522]
[1736824562566,0.41373989,95048.0,95047.0,0.0008522]
[1736824562771,0.30393605,95048.0,95047.0,0.0008522]
[1736824563190,0.09351705,95048.0,95047.0,0.01775821]
[1736824563311,0.09351705,95048.0,95047.0,0.0008522]
[1736824563523,0.09151705,95048.0,95047.0,0.01775459]
[1736824563750,0.09051705,95048.0,95047.0,0.01775459]
[1736824564356,0.09051705,95048.0,95047.0,0.02075459]
[1736824564810,0.09051705,95048.0,95047.0,0.09625459]
[1736824565424,4.87e-05,95068.0,95047.0,0.09625459]
[1736824565425,0.09051705,95063.0,95050.0,0.0755]
[1736824565670,0.09051705,95057.0,95056.0,0.0755]
[1736824565874,0.09051705,95057.0,95056.0,0.13034]
[1736824566071,0.09051705,95057.0,95056.0,0.14721522]
[1736824567484,0.09051705,95057.0,95056.0,0.15221522]
[1736824568642,0.09051705,95057.0,95056.0,0.15321522]
[1736824568845,0.09230856,95061.0,95056.0,0.14821522]
[1736824569048,0.09051705,95059.0,95057.0,0.0755]
[1736824569252,0.09051705,95059.0,95057.0,0.09235387]
[1736824570290,0.09051705,95059.0,95057.0,0.09435387]
[1736824572091,0.09051705,95059.0,95057.0,0.10235387]
[1736824573965,0.09051705,95058.0,95057.0,0.10235387]
[1736824575235,0.09051705,95058.0,95057.0,0.09435387]
[1736824575435,0.00179151,95061.0,95057.0,0.10335387]
[1736824575436,0.09230856,95061.0,95057.0,0.10335387]
[1736824575773,0.09051705,95058.0,95057.0,0.10335387]
[1736824576131,0.09051705,95058.0,95057.0,0.10135387]
[1736824576341,0.09051705,95058.0,95057.0,0.09435387]
[1736824576539,0.09051705,95058.0,95057.0,0.10035387]
[1736824576738,0.09230856,95061.0,95057.0,0.09835387]
[1736824576942,0.00179151,95061.0,95057.0,0.09235387]
[1736824577183,0.00179151,95061.0,95057.0,0.10235387]
[1736824577538,0.09230856,95061.0,95057.0,0.10235387]
[1736824577747,0.00179151,95061.0,95059.0,0.84977048]
[1736824577919,0.00179151,95061.0,95060.0,0.10980384]
[1736824578062,0.00179151,95061.0,95060.0,0.33699382]
[1736824578260,0.00179151,95061.0,95060.0,0.12660082]
[1736824578465,0.00179151,95061.0,95060.0,1.62660082]
[1736824578891,0.00179151,95061.0,95060.0,0.12660082]
[1736824579653,0.00179151,95061.0,95060.0,0.13360082]
[1736824579848,0.00179151,95061.0,95060.0,0.13460082]
[1736824580752,0.00179151,95061.0,95060.0,0.9833713]
[1736824581093,0.00179151,95061.0,95060.0,0.87356746]
[1736824581458,0.00179151,95061.0,95060.0,0.87960746]
[1736824582068,0.00179151,95061.0,95060.0,0.88160746]
[1736824582455,0.00179151,95061.0,95060.0,0.87260746]
[1736824582845,0.00179151,95061.0,95060.0,0.87460746]
[1736824583049,0.00179151,95061.0,95060.0,0.88360746]
[1736824583453,0.00179151,95061.0,95060.0,1.08300046]
[1736824583697,0.00179151,95061.0,95060.0,1.2018043]
[1736824584104,0.00179151,95061.0,95060.0,1.1948043]
[1736824584556,0.00179151,95061.0,95060.0,0.87460746]
[1736824585916,0.00179151,95061.0,95060.0,0.9824113]
[1736824586106,0.00179151,95061.0,95060.0,0.9914113]
[1736824586315,0.00179151,95061.0,95060.0,2.4844113]
[1736824586631,0.00179151,95061.0,95060.0,2.4934113]
[1736824586876,0.00179151,95061.0,95060.0,0.9914113]
[1736824587097,0.00179151,95061.0,95060.0,0.9944113]
[1736824587461,0.00179151,95061.0,95060.0,1.0375113]
[1736824587819,0.00179151,95061.0,95060.0,1.12284496]
[1736824588601,0.00179151,95061.0,95060.0,2.62284496]
[1736824588986,0.00179151,95061.0,95060.0,2.63184496]
[1736824590424,0.00179151,95061.0,95060.0,1.02204112]
[1736824590859,0.00179151,95061.0,95060.0,1.01804112]
[1736824591037,0.00179151,95061.0,95060.0,1.00904112]
[1736824591269,0.00179151,95061.0,95060.0,0.96090112]
[1736824591446,0.00179151,95061.0,95060.0,0.88644112]
[1736824592231,0.00179151,95061.0,95060.0,0.89544112]
[1736824593127,0.09230856,95061.0,95060.0,0.88940112]
[1736824593355,0.09230856,95061.0,95060.0,0.03963064]
[1736824593568,0.2829124,95061.0,95060.0,0.02283366]
[1736824593717,0.4329124,95061.0,95060.0,0.02283366]
[1736824594147,0.0808,95059.0,95057.0,0.0008531]
[1736824594347,0.25980384,95058.0,95057.0,0.0008531]
[1736824594746,0.56071789,95058.0,95057.0,0.0008531]
[1736824594922,0.64151789,95058.0,95057.0,0.0008531]
[1736824595396,0.74151789,95058.0,95057.0,0.0008531]
[1736824595580,0.90981789,95058.0,95057.0,0.0008531]
[1736824596192,0.91081789,95058.0,95057.0,0.0008531]
[1736824596797,0.91281789,95058.0,95057.0,0.0008531]
[1736824596961,0.91181789,95058.0,95057.0,0.0008531]
[1736824597157,0.91181789,95058.0,95057.0,0.0018531]
[1736824597564,0.91381789,95058.0,95057.0,0.0018531]
[1736824597976,0.73173605,95048.0,95025.0,0.52957048]
[1736824598197,0.90983989,95048.0,95023.0,0.3202]
[1736824599529,0.91083989,95048.0,95023.0,0.3202]
[1736824600129,0.91283989,95048.0,95023.0,0.3202]
[1736824600547,0.88983989,95048.0,95023.0,0.3202]
[1736824601898,0.89945172,95048.0,95023.0,0.3202]
[1736824602056,0.90045172,95048.0,95024.0,1.5]
[1736824602256,0.90245172,95048.0,95023.0,0.3202]
[1736824602458,0.71193467,95048.0,95023.0,0.3202]
[1736824602679,0.90245172,95048.0,95023.0,0.3202]
[1736824603059,0.80245172,95048.0,95023.0,0.3202]
[1736824603261,0.71193467,95048.0,95023.0,0.3202]
[1736824603462,0.80245172,95048.0,95023.0,0.3202]
[1736824604488,0.90245172,95048.0,95023.0,0.3202]
[1736824604684,0.75715172,95048.0,95023.0,0.32624]
[1736824604892,0.42635172,95048.0,95031.0,0.0829]
[1736824605236,0.57635172,95048.0,95023.0,0.32624]
[1736824605362,0.67635172,95048.0,95023.0,0.32624]
[1736824605569,0.67435172,95048.0,95023.0,0.32624]
[1736824605780,0.67635172,95048.0,95023.0,0.32624]
[1736824606124,0.87825172,95048.0,95023.0,0.3202]
[1736824606342,0.92565172,95048.0,95023.0,0.3202]
[1736824606457,0.92365172,95048.0,95013.0,0.0803]
[1736824606657,0.92565172,95048.0,95009.0,0.53561048]
[1736824606864,0.92765172,95048.0,95009.0,0.53561048]
[1736824607081,0.92765172,95048.0,95009.0,0.52957048]
[1736824607518,0.92765172,95048.0,95047.0,2e-07]
[1736824608159,0.92365172,95048.0,95047.0,2e-07]
[1736824608511,0.92965172,95048.0,95047.0,2e-07]
[1736824608932,0.92365172,95048.0,95047.0,2e-07]
[1736824609154,0.92965172,95048.0,95047.0,0.0010002]
[1736824609360,0.93165172,95048.0,95047.0,0.0020002]
[1736824611396,1.04145556,95048.0,95047.0,0.0020002]
[1736824611892,0.93165172,95048.0,95047.0,0.0020002]
[1736824612845,0.92965172,95048.0,95047.0,0.0010002]
[1736824613045,0.73313467,95048.0,95047.0,2e-07]
[1736824613310,0.93165172,95048.0,95047.0,0.0020002]
[1736824614634,0.92365172,95048.0,95047.0,2e-07]
[1736824614944,1.04145556,95048.0,95047.0,0.0010002]
[1736824615283,1.03724749,95048.0,95047.0,2e-07]
[1736824615484,1.04124749,95048.0,95047.0,0.0010002]
[1736824615691,1.04324749,95048.0,95047.0,0.0010002]
[1736824616319,1.03524749,95048.0,95047.0,2e-07]
[1736824616514,1.03724749,95048.0,95047.0,2e-07]
[1736824616732,0.92744365,95048.0,95047.0,2e-07]
[1736824617742,0.92544365,95048.0,95047.0,2e-07]
[1736824617934,0.93144365,95048.0,95047.0,0.0010002]
[1736824618132,0.92744365,95048.0,95047.0,2e-07]
[1736824618497,0.95089219,95048.0,95047.0,0.0010002]
[1736824618767,0.94289219,95048.0,95047.0,2e-07]
[1736824619140,0.95089219,95048.0,95047.0,0.0010002]
[1736824619457,0.67396705,95034.0,95006.0,0.0803]
[1736824619665,0.78377089,95034.0,95006.0,0.0803]
[1736824620646,0.78377089,95034.0,95033.0,0.00134027]
[1736824621838,0.78577089,95034.0,95033.0,0.00134027]
[1736824622796,0.79277089,95034.0,95033.0,0.00234027]
[1736824623176,0.82483112,95034.0,95033.0,0.00234027]
[1736824626376,0.72483112,95034.0,95033.0,0.00234027]
[1736824626803,0.82483112,95034.0,95033.0,0.00234027]
[1736824628600,0.70183112,95034.0,95033.0,0.00234027]
[1736824628824,0.60183112,95034.0,95033.0,0.00234027]
[1736824629226,0.70183112,95034.0,95033.0,0.00234027]
[1736824629728,0.60183112,95034.0,95033.0,0.00234027]
[1736824630133,0.70183112,95034.0,95033.0,0.00234027]
[1736824644290,0.70183112,95034.0,95033.0,0.08044027]
[1736824644291,0.60183112,95034.0,95033.0,0.08044027]
[1736824644496,0.09951705,95034.0,95033.0,0.12784027]
[1736824644854,0.09951705,95034.0,95033.0,0.13992348]
[1736824645072,0.009,95034.0,95033.0,0.14596348]
[1736824645277,0.009,95034.0,95033.0,0.25576732]
[1736824645503,0.09230898,95047.0,95041.0,0.210435]
[1736824645504,0.00179193,95047.0,95041.0,0.210435]
[1736824645713,0.00179193,95047.0,95044.0,0.84977048]
[1736824645911,0.00179193,95047.0,95045.0,0.09016846]
[1736824647008,0.00179193,95047.0,95045.0,0.01206846]